bitfinex-derivatives/quotes_ETHF0:USTF0_20230902
["timestamp","ask_amount","ask_price","bid_price","bid_amount"]
[1693643918662,4.63768086,1631.1,1631.0,12.68271585]
[1693643924772,5.79840875,1631.1,1631.0,12.68271585]
[1693643925175,5.79840875,1631.1,1631.0,9.81555233]
[1693643925377,5.79840875,1631.1,1631.0,12.68271585]
[1693643926976,4.63768086,1631.1,1631.0,12.68271585]
[1693643927177,5.79840875,1631.1,1631.0,12.68271585]
[1693643932984,4.63768086,1631.1,1631.0,12.68271585]
[1693643943288,0.03816086,1631.1,1631.0,14.98261585]
[1693643943795,4.63768086,1631.1,1631.0,14.98261585]
[1693643945395,4.63768086,1631.1,1631.0,12.68271585]
[1693643946394,4.63768086,1631.1,1631.0,14.98261585]
[1693643946796,0.03816086,1631.1,1631.0,14.98261585]
[1693643947190,2.33792086,1631.1,1631.0,14.98261585]
[1693643947387,4.63768086,1631.1,1631.0,12.68271585]
[1693643948399,4.63768086,1631.1,1631.0,14.98261585]
[1693643949100,0.03816086,1631.1,1631.0,14.98261585]
[1693643950700,2.33792086,1631.1,1631.0,14.98261585]
[1693643951201,0.03816086,1631.1,1631.0,14.98261585]
[1693643951501,2.33792086,1631.1,1631.0,14.98261585]
[1693643951701,0.03816086,1631.1,1631.0,14.98261585]
[1693643952698,2.33792086,1631.1,1631.0,14.98261585]
[1693643953004,0.03816086,1631.1,1631.0,14.98261585]
[1693643983643,0.03816086,1631.1,1631.0,14.9792984]
[1693643983840,0.03816086,1631.1,1631.0,14.98275124]
[1693643991852,0.03816086,1631.1,1631.0,20.50075124]
[1693643995448,2.4816,1631.2,1631.0,20.50075124]
[1693644000749,2.3917,1631.3,1631.1,5.518]
[1693644000958,4.59826,1631.6,1631.2,19.88326352]
[1693644001153,0.03501724,1631.5,1631.4,5.518]
[1693644001455,0.03501724,1631.5,1631.4,12.41594]
[1693644001950,0.03501724,1631.5,1631.4,17.58733041]
[1693644002850,0.03501724,1631.5,1631.4,17.58244352]
[1693644003651,1e-08,1631.5,1631.4,17.58244352]
[1693644003951,1e-08,1631.5,1631.4,17.64374352]
[1693644005050,1e-08,1631.5,1631.4,20.18624352]
[1693644005645,1e-08,1631.5,1631.4,17.64374352]
[1693644005857,1e-08,1631.5,1631.4,20.12394352]
[1693644006758,2.49340001,1631.7,1631.4,20.12394352]
[1693644006954,1e-08,1631.6,1631.5,5.518]
[1693644007153,1e-08,1631.6,1631.5,17.58196352]
[1693644014057,1e-08,1631.6,1631.5,19.98876352]
[1693644022365,1e-08,1631.6,1631.5,27.08849006]
[1693644027157,2.29906001,1631.6,1631.5,19.16369006]
[1693644027362,8.02878438,1631.6,1631.5,13.99732654]
[1693644027562,10.32784438,1631.6,1631.5,4.5984]
[1693644028668,12.62690438,1631.6,1631.4,10.61220768]
[1693644028864,1e-08,1631.5,1631.4,10.61220768]
[1693644029068,4.59840001,1631.5,1631.4,12.91154768]
[1693644029575,6.89760001,1631.5,1631.4,12.91154768]
[1693644031167,6.89760001,1631.5,1631.4,15.7787112]
[1693644032066,6.89760001,1631.5,1631.4,10.2607112]
[1693644037172,14.71480001,1631.5,1631.4,5.09420768]
[1693644037469,14.71480001,1631.5,1631.4,0.49566768]
[1693644037677,14.71480001,1631.5,1631.4,2.29934]
[1693644038072,14.71480001,1631.5,1631.4,4.59868]
[1693644042283,12.41560001,1631.5,1631.4,9.76518352]
[1693644042582,10.11640001,1631.5,1631.4,9.76518352]
[1693644042777,12.41560001,1631.5,1631.4,9.76518352]
[1693644043282,10.11640001,1631.5,1631.4,9.76518352]
[1693644043481,12.41560001,1631.5,1631.4,9.76518352]
[1693644043882,12.41560001,1631.5,1631.4,6.89802]
[1693644044081,12.41560001,1631.5,1631.4,9.76518352]
[1693644046083,12.41560001,1631.5,1631.4,6.89802]
[1693644053491,10.11640001,1631.5,1631.4,9.76518352]
[1693644053990,12.41560001,1631.5,1631.4,9.82648352]
[1693644057086,10.11640001,1631.5,1631.4,9.82648352]
[1693644057289,12.41560001,1631.5,1631.4,9.82648352]
[1693644058789,6.89760001,1631.5,1631.4,9.82648352]
[1693644060098,6.89760001,1631.5,1631.4,6.95932]
[1693644060297,6.89760001,1631.5,1631.4,9.82648352]
[1693644072007,6.89760001,1631.5,1631.4,15.34448352]
[1693644073111,6.89760001,1631.5,1631.4,12.47732]
[1693644073909,6.89760001,1631.5,1631.4,15.34448352]
[1693644077514,6.89760001,1631.5,1631.4,12.47732]
[1693644077911,6.89760001,1631.5,1631.4,15.34448352]
[1693644079015,9.19680001,1631.5,1631.4,5.5793]
[1693644079416,6.89760001,1631.5,1631.4,10.17798]
[1693644080315,6.89760001,1631.5,1631.4,12.47732]
[1693644083315,6.89760001,1631.5,1631.4,10.17798]
[1693644085720,6.89760001,1631.5,1631.4,13.04514352]
[1693644086418,6.89760001,1631.5,1631.4,10.17798]
[1693644090017,6.89760001,1631.5,1631.4,13.04514352]
[1693644090419,6.89760001,1631.5,1631.4,10.17798]
[1693644091218,6.89760001,1631.5,1631.4,13.04514352]
[1693644091920,6.89760001,1631.5,1631.4,7.52714352]
[1693644092519,6.89760001,1631.5,1631.4,4.65998]
[1693644093116,6.89760001,1631.5,1631.4,4.59868]
[1693644093320,3.43066437,1631.4,1631.1,4.59948]
[1693644093526,3.43066437,1631.4,1631.1,4.59947]
[1693644093527,9.19792001,1631.3,1631.1,4.59947]
[1693644093723,1e-08,1631.2,1631.1,4.59947]
[1693644093922,10.32952438,1631.2,1631.1,4.59947]
[1693644104424,9.16879649,1631.2,1631.1,12.98463352]
[1693644104628,4.59854,1631.5,1631.1,17.58415352]
[1693644104829,0.03360541,1631.4,1631.1,21.54885602]
[1693644105031,0.03360541,1631.4,1631.3,5.518]
[1693644105234,2.33293541,1631.4,1631.3,18.03811655]
[1693644105529,2.33293541,1631.4,1631.3,20.54501655]
[1693644106434,4.63226541,1631.4,1631.3,20.54501655]
[1693644107341,4.63226541,1631.4,1631.3,20.08994352]
[1693644107632,10.3916533,1631.4,1631.1,2.29973]
[1693644107834,0.03360541,1631.3,1631.1,10.1174]
[1693644108031,0.03360541,1631.3,1631.1,7.81767]
[1693644108032,6.89886,1631.2,1631.1,7.81767]
[1693644108231,10.36312978,1631.2,1631.1,10.11743]
[1693644108532,10.36312978,1631.2,1631.1,7.81767]
[1693644109937,10.36312978,1631.2,1631.1,10.11743]
[1693644110538,10.36312978,1631.2,1631.1,12.41719]
[1693644111240,8.0931933,1631.2,1631.1,15.28435352]
[1693644111642,8.0931933,1631.2,1631.1,12.41719]
[1693644111836,8.0931933,1631.2,1631.1,6.89919]
[1693644121446,8.0931933,1631.2,1631.1,9.76635352]
[1693644122451,8.0931933,1631.2,1631.1,6.89919]
[1693644122849,6.93246541,1631.2,1631.1,9.76635352]
[1693644123050,4.63284541,1631.2,1631.1,12.06611352]
[1693644124153,6.93246541,1631.2,1631.1,9.76635352]
[1693644126956,8.0931933,1631.2,1631.1,9.76635352]
[1693644131665,6.93246541,1631.2,1631.1,9.76635352]
[1693644131863,6.93246541,1631.2,1631.1,15.28435352]
[1693644132063,8.0931933,1631.2,1631.1,15.28435352]
[1693644133962,6.93246541,1631.2,1631.1,15.28435352]
[1693644134158,8.0931933,1631.2,1631.1,12.41719]
[1693644134360,8.0931933,1631.2,1631.1,15.28435352]
[1693644136465,8.0931933,1631.2,1631.1,12.41719]
[1693644138966,8.0931933,1631.2,1631.1,15.28435352]
[1693644142666,6.93246541,1631.2,1631.1,15.28435352]
[1693644147370,8.0931933,1631.2,1631.1,15.28435352]
[1693644151969,8.0931933,1631.2,1631.1,12.41719]
[1693644153771,8.0931933,1631.2,1631.1,15.28435352]
[1693644160275,8.0931933,1631.2,1631.1,12.41719]
[1693644162578,8.0931933,1631.2,1631.1,15.28435352]
[1693644167481,6.93246541,1631.2,1631.1,15.28435352]
[1693644168889,8.0931933,1631.2,1631.1,15.28435352]
[1693644171790,6.93246541,1631.2,1631.1,15.28435352]
[1693644179593,8.0931933,1631.2,1631.1,15.28435352]
[1693644185200,6.93246541,1631.2,1631.1,15.28435352]
[1693644185999,8.0931933,1631.2,1631.1,15.28435352]
[1693644188204,6.93246541,1631.2,1631.1,15.28435352]
[1693644192504,8.0931933,1631.2,1631.1,15.28435352]
[1693644201809,6.93246541,1631.2,1631.1,15.28435352]
[1693644204211,4.63284541,1631.2,1631.1,15.28435352]
[1693644212312,5.7935733,1631.2,1631.1,15.28435352]
[1693644213106,4.63284541,1631.2,1631.1,15.28435352]
[1693644221524,5.7935733,1631.2,1631.1,15.28435352]
[1693644224823,4.63284541,1631.2,1631.1,15.28435352]
[1693644225627,5.7935733,1631.2,1631.1,15.28435352]
[1693644225827,8.0931933,1631.2,1631.1,12.41719]
[1693644226928,8.0931933,1631.2,1631.1,6.89919]
[1693644230827,8.0931933,1631.2,1631.1,4.59943]
[1693644231027,10.3928233,1631.2,1631.0,10.61711488]
[1693644231329,12.94901789,1631.2,1631.1,2.29975]
[1693644231532,12.98264514,1631.2,1631.1,2.29975]
[1693644231725,12.98264514,1631.2,1631.1,4.5995]
[1693644231926,20.77058162,1631.2,1631.0,7.39893488]
[1693644232122,6.93287725,1631.1,1631.0,7.39893488]
[1693644257158,6.93287725,1631.1,1631.0,10.2660984]
[1693644257358,6.93287725,1631.1,1631.0,7.39893488]
[1693644258362,6.93287725,1631.1,1631.0,10.2660984]
[1693644259365,6.93287725,1631.1,1631.0,7.39893488]
[1693644260564,6.93287725,1631.1,1631.0,9.91063488]
[1693644270368,6.93287725,1631.1,1631.0,7.61079488]
[1693644270564,6.93287725,1631.1,1631.0,5.31096488]
[1693644270772,6.93287725,1631.1,1631.0,7.61085488]
[1693644271467,6.93287725,1631.1,1631.0,5.09915488]
[1693644279171,6.93287725,1631.1,1631.0,7.39906488]
[1693644285677,0.03362725,1631.1,1631.0,18.0841384]
[1693644286878,2.33337725,1631.1,1631.0,18.0841384]
[1693644287482,4.63312725,1631.1,1631.0,18.0841384]
[1693644290683,4.63312725,1631.1,1631.0,15.7842284]
[1693644293385,6.93287725,1631.1,1631.0,15.7842284]
[1693644298889,6.93287725,1631.1,1631.0,22.72734443]
[1693644302091,4.63312725,1631.1,1631.0,22.72734443]
[1693644305388,0.03362725,1631.1,1631.0,25.02725443]
[1693644306892,0.03362725,1631.1,1631.0,27.54915443]
[1693644307093,0.03362725,1631.2,1631.0,27.54915443]
[1693644307293,0.03362725,1631.1,1631.0,22.03115443]
[1693644307594,0.03362725,1631.1,1631.0,27.54915443]
[1693644307795,0.03362725,1631.2,1631.0,27.54915443]
[1693644307993,0.03362725,1631.2,1631.1,5.518]
[1693644308189,0.03362725,1631.2,1631.1,14.717]
[1693644308391,0.03362725,1631.3,1631.1,14.717]
[1693644308593,0.03362725,1631.2,1631.1,14.717]
[1693644308788,0.03362725,1631.3,1631.1,14.717]
[1693644309091,0.03362725,1631.2,1631.1,14.717]
[1693644309292,0.03362725,1631.3,1631.1,14.717]
[1693644309590,0.03362725,1631.2,1631.1,14.717]
[1693644309783,0.03362725,1631.3,1631.1,14.717]
[1693644309989,0.03362725,1631.2,1631.1,14.717]
[1693644310297,0.03362725,1631.2,1631.1,17.58416352]
[1693644310690,0.03362725,1631.2,1631.1,24.34229183]
[1693644328009,0.03362725,1631.2,1631.1,26.85479183]
[1693644334418,8.09325514,1631.2,1631.1,16.87562831]
[1693644334915,8.09325514,1631.2,1631.1,19.17540831]
[1693644335113,5.79361514,1631.2,1631.1,19.17540831]
[1693644337120,3.49398514,1631.2,1631.1,19.17540831]
[1693644339120,3.49398514,1631.2,1631.1,21.47518831]
[1693644342325,1.19435514,1631.2,1631.1,21.47518831]
[1693644342720,3.49397514,1631.2,1631.1,24.34235183]
[1693644345127,3.49397514,1631.2,1631.1,21.47518831]
[1693644349628,3.49397514,1631.2,1631.1,24.34235183]
[1693644349938,3.49397514,1631.2,1631.1,19.17540831]
[1693644349939,5.79359514,1631.2,1631.1,19.17540831]
[1693644351328,8.09321514,1631.2,1631.1,19.17540831]
[1693644352228,5.79359514,1631.2,1631.1,19.17540831]
[1693644352931,8.09321514,1631.2,1631.1,4.5995]
[1693644354435,8.09321514,1631.2,1631.1,2.29975]
[1693644354735,8.09321514,1631.2,1631.1,4.5995]
[1693644354928,8.09321514,1631.2,1631.1,2.29975]
[1693644355130,8.09321514,1631.2,1631.1,4.59947]
[1693644355331,8.09321514,1631.2,1631.1,2.2997]
[1693644355532,8.09321514,1631.2,1631.1,4.5994]
[1693644355832,8.09321514,1631.2,1631.1,2.2997]
[1693644356027,8.09321514,1631.2,1631.1,2.29969]
[1693644356632,8.09321514,1631.2,1631.1,4.5994]
[1693644359529,8.09321514,1631.2,1631.1,6.89911]
[1693644362140,8.09321514,1631.2,1631.1,4.5994]
[1693644364332,13.61121514,1631.2,1631.1,4.5994]
[1693644366342,6.71235514,1631.2,1631.0,0.49944488]
[1693644366537,6.71235514,1631.2,1630.9,6.44899005]
[1693644366538,0.03362725,1631.1,1630.9,6.44899005]
[1693644366739,2.30356373,1631.1,1630.9,6.44899005]
[1693644366938,0.03362725,1631.0,1630.9,6.44899005]
[1693644367138,0.03362725,1631.0,1630.9,9.31615357]
[1693644367337,0.03362725,1631.0,1630.9,25.51244185]
[1693644370045,0.03362725,1631.0,1630.9,26.00842014]
[1693644370448,1.19435514,1631.0,1630.9,23.14125662]
[1693644377850,5.79395514,1631.0,1630.9,15.32331662]
[1693644378056,5.79395514,1631.0,1630.9,8.32678834]
[1693644378347,8.09375514,1631.0,1630.9,8.32678834]
[1693644379356,8.09375514,1631.0,1630.9,6.02684834]
[1693644380153,8.09375514,1631.0,1630.9,8.32681834]
[1693644380855,8.09375514,1631.0,1630.9,6.02684834]
[1693644387161,8.09375514,1631.0,1630.9,3.72690834]
[1693644388162,8.09375514,1631.0,1630.9,6.02687834]
[1693644389961,8.09375514,1631.0,1630.9,3.72690834]
[1693644391358,8.09375514,1631.0,1630.9,6.02687834]
[1693644396165,8.09375514,1631.0,1630.9,8.32684834]
[1693644399169,8.09375514,1631.0,1630.9,6.02687834]
[1693644406969,8.09375514,1631.0,1630.9,8.62027834]
[1693644411477,8.09375514,1631.0,1630.9,10.92024834]
[1693644411678,8.09375514,1631.0,1630.9,8.62027834]
[1693644413481,8.09375514,1631.0,1630.9,10.92026834]
[1693644416481,0.03362725,1631.0,1630.9,21.60542186]
[1693644417082,0.03362725,1631.1,1630.9,21.60542186]
[1693644417279,0.03362725,1631.0,1630.9,21.60542186]
[1693644417476,0.03362725,1631.0,1630.9,24.17722186]
[1693644417677,0.03362367,1631.0,1630.9,24.17722186]
[1693644417883,0.03362343,1631.0,1630.9,24.17722186]
[1693644418077,2.343e-05,1631.2,1630.9,24.17722186]
[1693644418379,0.03115595,1631.2,1631.1,12.41707]
[1693644418680,0.03115595,1631.2,1631.1,17.58396352]
[1693644419278,2.33070595,1631.2,1631.1,17.58396352]
[1693644420089,0.03115595,1631.2,1631.1,17.58396352]
[1693644420790,0.03115595,1631.3,1631.1,17.58396352]
[1693644420990,0.03115595,1631.2,1631.1,19.99456352]
[1693644421493,0.03115595,1631.2,1631.1,22.37216352]
[1693644421697,0.03115595,1631.3,1631.1,22.37216352]
[1693644421994,0.03115595,1631.2,1631.1,16.85416352]
[1693644422192,0.03115595,1631.2,1631.1,22.37216352]
[1693644422589,0.03115595,1631.3,1631.1,22.37216352]
[1693644423285,0.03115595,1631.2,1631.1,22.37216352]
[1693644424084,0.03115595,1631.3,1631.1,22.37216352]
[1693644424288,0.03115595,1631.2,1631.1,22.37216352]
[1693644424496,0.03115595,1631.3,1631.1,22.37216352]
[1693644424693,0.03115595,1631.2,1631.1,22.37216352]
[1693644424992,0.03115595,1631.3,1631.1,22.37216352]
[1693644425199,0.03115595,1631.2,1631.1,22.37216352]
[1693644425889,4.59863,1631.4,1631.1,22.37216352]
[1693644425890,0.03115595,1631.3,1631.1,22.37216352]
[1693644426090,0.03115595,1631.2,1631.1,22.37216352]
[1693644426291,2.33048595,1631.4,1631.1,22.37216352]
[1693644426486,0.03115595,1631.3,1631.1,22.37216352]
[1693644428399,0.03115595,1631.2,1631.1,22.37216352]
[1693644428699,0.03115595,1631.3,1631.1,22.37216352]
[1693644428894,0.03115595,1631.2,1631.1,22.37216352]
[1693644429094,0.03115595,1631.3,1631.1,22.37216352]
[1693644429392,0.03115595,1631.2,1631.1,22.37216352]
[1693644429588,0.03115595,1631.3,1631.1,22.37216352]
[1693644429796,0.03115595,1631.2,1631.1,22.37216352]
[1693644430196,0.03115595,1631.3,1631.1,22.37216352]
[1693644430396,0.03115595,1631.2,1631.1,22.37216352]
[1693644430593,0.03115595,1631.3,1631.1,22.37216352]
[1693644430800,0.03115595,1631.2,1631.1,22.37216352]
[1693644430998,0.03115595,1631.3,1631.1,22.37216352]
[1693644431198,0.03115595,1631.2,1631.1,22.37216352]
[1693644431397,0.03115595,1631.3,1631.1,22.37216352]
[1693644431699,0.03115595,1631.2,1631.1,22.37216352]
[1693644432199,0.03115595,1631.2,1631.1,22.8673974]
[1693644432398,0.03115595,1631.3,1631.1,22.8673974]
[1693644432592,0.03115595,1631.2,1631.1,22.8673974]
[1693644433602,0.03115595,1631.3,1631.1,22.8673974]
[1693644437199,0.03115595,1631.3,1631.2,5.518]
[1693644437401,0.03115595,1631.3,1631.2,14.71644]
[1693644437806,0.03115595,1631.4,1631.2,14.71644]
[1693644437994,0.03115595,1631.3,1631.2,9.19844]
[1693644438199,0.03115595,1631.4,1631.2,14.71644]
[1693644438395,0.03115595,1631.3,1631.2,9.19844]
[1693644438602,0.03115595,1631.4,1631.2,14.71644]
[1693644438804,9.97310999,1631.5,1631.3,8.38516352]
[1693644439005,9.97310999,1631.5,1631.4,6.89799]
[1693644439308,10.00265771,1631.5,1631.4,6.89799]
[1693644440008,0.02954772,1631.5,1631.4,9.19732]
[1693644440208,0.02954772,1631.5,1631.4,11.75062]
[1693644448521,0.02954772,1631.5,1631.4,11.81192]
[1693644452025,0.02954772,1631.5,1631.4,17.32992]
[1693644452219,0.02954772,1631.5,1631.4,17.82317956]
[1693644462528,5.518,1631.7,1631.5,12.06392352]
[1693644462731,0.02953106,1631.6,1631.5,9.19676]
[1693644462930,0.02953106,1631.6,1631.5,11.71226]
[1693644463329,0.02953106,1631.6,1631.5,14.57942352]
[1693644469436,11.30635895,1631.6,1631.5,6.89757]
[1693644469640,13.60540895,1631.6,1631.5,6.89757]
[1693644469839,13.60540895,1631.6,1631.5,4.59838]
[1693644474139,13.60540895,1631.6,1631.5,7.46554352]
[1693644475544,13.60540895,1631.6,1631.5,9.76473352]
[1693644476341,12.44468106,1631.6,1631.5,9.76473352]
[1693644478042,13.60540895,1631.6,1631.5,9.76473352]
[1693644479142,12.44468106,1631.6,1631.5,9.76473352]
[1693644480245,13.60540895,1631.6,1631.5,9.76473352]
[1693644480437,12.44468106,1631.6,1631.5,9.76473352]
[1693644481848,6.92668106,1631.6,1631.5,9.76473352]
[1693644482241,4.62763106,1631.6,1631.5,9.76473352]
[1693644483147,6.92668106,1631.6,1631.5,9.76473352]
[1693644490656,0.02953106,1631.6,1631.5,12.06393352]
[1693644491056,7.81684,1631.8,1631.5,17.58193352]
[1693644491261,0.02833554,1631.7,1631.5,12.06393352]
[1693644491563,7.59882331,1631.9,1631.6,7.9253]
[1693644491860,0.02833531,1631.8,1631.7,17.58080352]
[1693644506368,0.02833531,1631.8,1631.7,18.06906366]
[1693644510069,13.6033732,1631.8,1631.7,5.08608014]
[1693644510667,13.6033732,1631.8,1631.7,7.38499014]
[1693644512780,11.3046032,1631.8,1631.7,7.38499014]
[1693644513775,11.3046032,1631.8,1631.7,9.68391014]
[1693644520484,11.3046032,1631.8,1631.7,7.38499014]
[1693644521184,13.6033732,1631.8,1631.7,7.38499014]
[1693644522082,11.3046032,1631.8,1631.7,7.38499014]
[1693644523286,11.3046032,1631.8,1631.7,9.68390014]
[1693644525182,27.60404758,1631.8,1631.7,9.68390014]
[1693644525384,11.3046032,1631.8,1631.7,9.68390014]
[1693644526088,11.3046032,1631.8,1631.7,7.38499014]
[1693644526689,11.3046032,1631.8,1631.7,10.25215366]
[1693644527087,9.0058332,1631.8,1631.7,12.55106366]
[1693644527387,9.0057732,1631.8,1631.7,12.55106366]
[1693644528189,9.0057632,1631.8,1631.7,12.55106366]
[1693644528481,6.7070632,1631.8,1631.7,12.55106366]
[1693644528689,9.0057532,1631.8,1631.7,12.55106366]
[1693644529084,6.7070632,1631.8,1631.7,12.55106366]
[1693644529290,9.0057632,1631.8,1631.7,12.55106366]
[1693644529691,9.0057632,1631.8,1631.7,9.68390014]
[1693644530091,6.7070632,1631.8,1631.7,9.68390014]
[1693644530291,9.0057832,1631.8,1631.7,9.68390014]
[1693644530487,9.0057632,1631.8,1631.7,9.68390014]
[1693644530693,9.0057632,1631.8,1631.7,12.55106366]
[1693644530987,9.0057632,1631.8,1631.7,9.68390014]
[1693644531188,6.7070632,1631.8,1631.7,9.68390014]
[1693644531387,9.0057632,1631.8,1631.7,9.68390014]
[1693644532086,6.7070632,1631.8,1631.7,9.68390014]
[1693644532287,9.0057632,1631.8,1631.7,9.68390014]
[1693644532687,9.0057632,1631.8,1631.7,12.55106366]
[1693644533086,6.7070632,1631.8,1631.7,9.68390014]
[1693644533286,9.0057632,1631.8,1631.7,9.68390014]
[1693644534087,9.0057632,1631.8,1631.7,12.55106366]
[1693644534393,9.0057632,1631.8,1631.7,9.68390014]
[1693644535087,6.7070632,1631.8,1631.7,9.68390014]
[1693644535288,9.0057632,1631.8,1631.7,9.68390014]
[1693644535485,25.30520758,1631.8,1631.7,9.68390014]
[1693644535792,9.0057632,1631.8,1631.7,9.68390014]
[1693644536184,9.0057832,1631.8,1631.7,9.68390014]
[1693644537093,6.7070632,1631.8,1631.7,9.68390014]
[1693644537581,9.0057632,1631.8,1631.7,9.68390014]
[1693644538087,11.3044632,1631.8,1631.7,9.68390014]
[1693644538291,11.3044632,1631.8,1631.7,7.38499014]
[1693644539986,13.6031632,1631.8,1631.7,2.78717014]
[1693644540193,13.6031632,1631.8,1631.7,2.78710014]
[1693644540393,15.9018632,1631.8,1631.5,6.89718]
[1693644540597,2.29827179,1631.7,1631.5,6.89718]
[1693644540896,5.7870232,1631.6,1631.5,6.89718]
[1693644541092,3.4880432,1631.6,1631.5,9.76434352]
[1693644541293,5.7870532,1631.6,1631.5,6.89718]
[1693644542199,5.7870532,1631.6,1631.5,9.19634]
[1693644543099,3.4880432,1631.6,1631.5,9.19634]
[1693644543899,5.7870332,1631.6,1631.5,9.19634]
[1693644544197,3.4880432,1631.6,1631.5,9.19634]
[1693644545098,5.7870332,1631.6,1631.5,9.19634]
[1693644546100,5.7870632,1631.6,1631.5,9.19634]
[1693644547093,3.4880432,1631.6,1631.5,9.19634]
[1693644547400,5.7870332,1631.6,1631.5,9.19634]
[1693644548102,3.4880432,1631.6,1631.5,9.19634]
[1693644548501,5.7870232,1631.6,1631.5,9.19634]
[1693644549195,3.4880432,1631.6,1631.5,9.19634]
[1693644549601,5.7870432,1631.6,1631.5,9.19634]
[1693644550100,5.7870632,1631.6,1631.5,6.89718]
[1693644553103,5.7870532,1631.6,1631.5,6.89718]
[1693644554308,5.7870332,1631.6,1631.5,6.89718]
[1693644555106,3.4880432,1631.6,1631.5,6.89718]
[1693644555304,5.7870532,1631.6,1631.5,6.89718]
[1693644556101,5.7870532,1631.6,1631.5,9.19634]
[1693644557211,5.7870632,1631.6,1631.5,9.19634]
[1693644560212,4.62633531,1631.6,1631.5,12.06350352]
[1693644560511,5.7870632,1631.6,1631.5,12.06350352]
[1693644562014,4.62633531,1631.6,1631.5,12.06350352]
[1693644563112,2.32731531,1631.6,1631.5,12.06350352]
[1693644563311,3.4880432,1631.6,1631.5,12.06350352]
[1693644563612,4.62632531,1631.6,1631.5,9.19634]
[1693644564111,5.7870532,1631.6,1631.5,9.19634]
[1693644564611,4.62632531,1631.6,1631.5,9.19634]
[1693644564914,5.7870532,1631.6,1631.5,9.19634]
[1693644565317,4.62632531,1631.6,1631.5,12.06350352]
[1693644566014,5.7870532,1631.6,1631.5,12.06350352]
[1693644566717,4.62632531,1631.6,1631.5,12.06350352]
[1693644567314,0.02833531,1631.6,1631.5,12.06350352]
[1693644568112,2.32731531,1631.6,1631.5,12.06350352]
[1693644569216,1.1890632,1631.6,1631.5,12.06350352]
[1693644569517,5.7870332,1631.6,1631.5,12.06350352]
[1693644569721,4.62630531,1631.6,1631.5,12.06350352]
[1693644570125,2.32733531,1631.6,1631.5,12.06350352]
[1693644570321,4.62633531,1631.6,1631.5,12.06350352]
[1693644571118,2.32733531,1631.6,1631.5,12.06350352]
[1693644573615,4.62633531,1631.6,1631.5,12.06350352]
[1693644574125,2.32733531,1631.6,1631.5,12.06350352]
[1693644575028,0.02833531,1631.6,1631.5,17.58150352]
[1693644575612,0.02833531,1631.8,1631.5,17.58150352]
[1693644575813,0.02716094,1631.7,1631.6,14.07342]
[1693644576017,0.02716094,1631.7,1631.6,22.45858352]
[1693644576517,2.32586094,1631.8,1631.6,22.45858352]
[1693644576715,2.32586094,1631.8,1631.6,16.94058352]
[1693644576716,0.02716094,1631.7,1631.6,16.94058352]
[1693644576927,0.02716094,1631.7,1631.6,22.45858352]
[1693644577321,0.02716094,1631.8,1631.6,22.45858352]
[1693644577531,0.02716094,1631.7,1631.6,16.94058352]
[1693644577821,0.02716094,1631.7,1631.6,22.45858352]
[1693644578322,0.02716094,1631.8,1631.6,22.45858352]
[1693644578522,0.02716094,1631.7,1631.6,16.94058352]
[1693644578726,0.02716094,1631.7,1631.6,22.45858352]
[1693644579218,0.02716094,1631.9,1631.6,22.45858352]
[1693644579526,0.02716094,1631.8,1631.7,5.5793]
[1693644579722,10.11499,1632.0,1631.8,0.0613]
[1693644580028,10.11499,1632.0,1631.9,6.89565]
[1693644580219,10.14214997,1632.0,1631.9,9.76281352]
[1693644580424,7.84364997,1632.0,1631.9,9.82411352]
[1693644580735,0.02715997,1632.0,1631.9,17.64067352]
[1693644593432,0.02715997,1632.1,1631.9,17.64067352]
[1693644593636,0.02715997,1632.0,1631.9,17.64067352]
[1693644593837,9.909689,1632.2,1631.9,17.64067352]
[1693644593838,0.02715997,1632.1,1631.9,17.64067352]
[1693644594038,0.02715997,1632.0,1631.9,17.64067352]
[1693644594742,0.02715997,1632.1,1631.9,17.64067352]
[1693644594943,0.02715997,1632.0,1631.9,17.64067352]
[1693644595744,0.02715997,1632.1,1631.9,17.64067352]
[1693644596445,0.02715997,1632.1,1632.0,5.518]
[1693644596645,0.02715997,1632.1,1632.0,14.71168]
[1693644599452,0.02715997,1632.1,1632.0,21.77466138]
[1693644599753,7.9515,1632.4,1632.0,21.77466138]
[1693644599754,0.02715997,1632.3,1632.0,24.39446138]
[1693644600042,0.02715997,1632.2,1632.0,18.87646138]
[1693644600244,2.4335,1632.4,1632.3,0.0613]
[1693644600549,2.46064854,1632.4,1632.3,17.57712352]
[1693644601242,4.75852854,1632.4,1632.3,17.63842352]
[1693644601446,4.75852854,1632.4,1632.3,17.57712352]
[1693644601745,4.75852854,1632.4,1632.3,17.63842352]
[1693644602043,4.75852854,1632.4,1632.3,12.12042352]
[1693644602240,2.46064854,1632.4,1632.3,12.12042352]
[1693644602546,4.75849854,1632.4,1632.3,12.12042352]
[1693644603240,4.75853854,1632.4,1632.3,12.12042352]
[1693644604147,4.75852854,1632.4,1632.3,12.12042352]
[1693644604847,0.02714854,1632.4,1632.3,17.63842352]
[1693644605647,0.02714854,1632.5,1632.3,17.63842352]
[1693644605852,0.02714854,1632.4,1632.3,12.12042352]
[1693644606051,0.02714854,1632.5,1632.3,17.63842352]
[1693644606347,0.02714854,1632.4,1632.3,12.12042352]
[1693644606545,0.02714854,1632.5,1632.3,17.63842352]
[1693644606754,0.02714854,1632.4,1632.3,12.12042352]
[1693644607053,0.02714854,1632.4,1632.3,17.63842352]
[1693644607263,0.02714854,1632.5,1632.3,17.63842352]
[1693644607450,0.02714854,1632.5,1632.4,5.5793]
[1693644607643,0.02714854,1632.5,1632.4,14.7707]
[1693644608348,0.02714854,1632.5,1632.4,17.2278]
[1693644608548,6.8917,1632.9,1632.6,0.0613]
[1693644608743,0.02712752,1632.8,1632.7,15.19902962]
[1693644608951,0.02712752,1632.9,1632.7,21.72248176]
[1693644609157,0.02712752,1632.9,1632.8,2.86716352]
[1693644609342,0.02712752,1632.9,1632.8,12.05648352]
[1693644609654,0.02712752,1632.9,1632.8,14.51358352]
[1693644611946,0.02712752,1632.9,1632.8,20.03158352]
[1693644620845,0.02712752,1632.9,1632.8,20.52147247]
[1693644628961,0.02712752,1632.9,1632.8,20.58277247]
[1693644629960,5.78241541,1632.9,1632.8,18.06437247]
[1693644630268,5.78241541,1632.9,1632.8,12.89987895]
[1693644630652,5.78241541,1632.9,1632.8,15.76704247]
[1693644632664,5.78241541,1632.9,1632.8,18.06444247]
[1693644632665,4.62168752,1632.9,1632.8,18.06444247]
[1693644632961,8.07969541,1632.9,1632.8,12.89987895]
[1693644633168,8.07969541,1632.9,1632.8,12.9035578]
[1693644633865,5.78241541,1632.9,1632.8,12.9035578]
[1693644634068,5.78241541,1632.9,1632.8,15.2009778]
[1693644635663,8.07969541,1632.9,1632.8,10.6062278]
[1693644636167,8.07969541,1632.9,1632.8,12.9036378]
[1693644637774,8.07969541,1632.9,1632.8,15.77080132]
[1693644638070,8.07969541,1632.9,1632.8,12.9036378]
[1693644638265,5.78241541,1632.9,1632.8,12.9036378]